bitfinex-derivatives/quotes_SOLF0:USTF0_20260126
["timestamp","ask_amount","ask_price","bid_price","bid_amount"]
[1769410641637,2.5631357,122.49,122.44,3.43478729]
[1769410642238,2.5631357,122.48,122.44,3.43478729]
[1769410647243,6.10366181,122.49,122.44,3.43478729]
[1769410648545,2.5631357,122.49,122.43,7.3603]
[1769410649044,2.5631357,122.51,122.44,2.5631357]
[1769410650048,2.5631357,122.51,122.45,7.3592]
[1769410650246,2.5631357,122.5,122.45,7.3592]
[1769410650547,2.5631357,122.5,122.44,7.3597]
[1769410652743,2.5631357,122.51,122.45,7.3594]
[1769410653248,2.5631357,122.5,122.45,7.3594]
[1769410653652,2.5631357,122.51,122.45,7.3594]
[1769410654844,2.5631357,122.51,122.43,9.9232357]
[1769410655047,2.5631357,122.5,122.43,7.3601]
[1769410655345,2.5631357,122.49,122.43,7.3601]
[1769410656545,7.3559,122.51,122.43,7.3601]
[1769410656748,2.5631357,122.5,122.43,7.3601]
[1769410660849,2.5631357,122.5,122.43,9.9232357]
[1769410662649,9.9196357,122.5,122.43,9.9232357]
[1769410662841,9.9196357,122.5,122.43,7.3601]
[1769410663540,288.8687,122.53,122.42,2.5631357]
[1769410663541,9.9202357,122.49,122.42,2.5631357]
[1769410663742,9.9202357,122.49,122.41,9.9244357]
[1769410664150,9.9202357,122.49,122.41,2.5631357]
[1769410664844,9.9202357,122.49,122.42,2.5631357]
[1769410665045,9.9202357,122.49,122.42,9.9243357]
[1769410667251,7.3571,122.49,122.42,9.9243357]
[1769410667457,9.9202357,122.49,122.42,9.9243357]
[1769410668556,9.9202357,122.49,122.43,7.3606]
[1769410670457,2.5631357,122.49,122.43,7.3606]
[1769410671060,2.5631357,122.5,122.43,9.9237357]
[1769410671964,9.9196357,122.5,122.43,9.9237357]
[1769410672864,2.5631357,122.49,122.43,9.9237357]
[1769410673163,2.5631357,122.49,122.43,7.3606]
[1769410680474,2.5631357,122.48,122.42,7.361]
[1769410681375,2.5631357,122.47,122.4,9.9251357]
[1769410681576,2.5631357,122.46,122.39,316.37390794]
[1769410682077,2.5631357,122.46,122.39,313.81077224]
[1769410682871,2.5631357,122.46,122.41,7.3618]
[1769410683276,2.5631357,122.45,122.39,313.81077224]
[1769410684375,114.4373,122.5,122.39,313.81077224]
[1769410684376,2.5631357,122.44,122.39,313.81077224]
[1769410685578,2.5631357,122.44,122.39,321.17377224]
[1769410689681,2.5631357,122.45,122.39,321.17377224]
[1769410690788,7.3583,122.47,122.4,7.3623]
[1769410690987,2.5631357,122.45,122.4,7.3623]
[1769410693589,2.5631357,122.46,122.4,7.3623]
[1769410694692,2.5631357,122.46,122.41,7.3618]
[1769410695887,2.5631357,122.47,122.41,7.3618]
[1769410697595,2.5631357,122.48,122.42,7.3612]
[1769410697894,2.5631357,122.49,122.42,9.9243357]
[1769410703593,2.56306309,122.49,122.42,9.92426309]
[1769410704695,7.357,122.5,122.42,9.92426309]
[1769410704888,9.92006309,122.5,122.42,9.92426309]
[1769410705700,2.56306309,122.49,122.42,9.92426309]
[1769410708200,2.56306309,122.48,122.42,7.3612]
[1769410708704,7.357,122.5,122.42,7.3612]
[1769410708903,2.56306309,122.49,122.42,9.92426309]
[1769410711097,2.56306309,122.48,122.41,2.56306309]
[1769410713008,2.56306309,122.47,122.41,7.3618]
[1769410713410,7.3573,122.49,122.41,7.3618]
[1769410713713,2.56306309,122.48,122.41,7.3618]
[1769410714912,2.56306309,122.47,122.41,7.3618]
[1769410715113,2.56306309,122.46,122.41,7.3618]
[1769410715311,2.56306309,122.47,122.41,7.3618]
[1769410717017,9.92136309,122.47,122.39,316.37383533]
[1769410717315,2.56306309,122.46,122.39,316.37383533]
[1769410718018,2.56306309,122.46,122.4,7.3624]
[1769410718211,9.92136309,122.47,122.4,7.3624]
[1769410718909,9.92206309,122.46,122.39,313.81077224]
[1769410719213,9.92206309,122.46,122.4,3.29888398]
[1769410719214,2.56306309,122.45,122.4,3.29888398]
[1769410720418,13.42955953,122.45,122.39,3.29888398]
[1769410720816,13.42855953,122.47,122.4,3.29888398]
[1769410721918,13.42855953,122.47,122.41,3.29888398]
[1769410723929,3.50679644,122.47,122.42,3.29888398]
[1769410726030,6.06985953,122.47,122.42,3.29888398]
[1769410734338,3.50679644,122.47,122.42,3.29888398]
[1769410746148,6.06985953,122.47,122.42,3.29888398]
[1769410747245,5.80786991,122.46,122.4,3.45507225]
[1769410747645,3.24480682,122.45,122.4,3.45507225]
[1769410749849,2.56306309,122.46,122.4,3.45507225]
[1769410750353,13.16616991,122.47,122.41,3.45507225]
[1769410751450,13.16506991,122.49,122.42,3.45507225]
[1769410751651,13.16506991,122.49,122.43,3.45507225]
[1769410752654,5.80786991,122.49,122.43,10.81557225]
[1769410752854,5.80786991,122.49,122.44,3.45507225]
[1769410756554,2.56306309,122.48,122.44,3.45507225]
[1769410757857,5.90672601,122.48,122.42,10.85399124]
[1769410758352,5.90672601,122.48,122.43,3.49279124]
[1769410765568,5.90698697,122.48,122.43,3.49279124]
[1769410766967,3.34366292,122.47,122.41,2.56332405]
[1769410767265,5.90698697,122.46,122.41,3.49279124]
[1769410767566,5.90698697,122.46,122.39,2.56332405]
[1769410767567,5.90698697,122.45,122.39,3.49279124]
[1769410768965,5.90698697,122.45,122.39,10.85569124]
[1769410770968,3.34366292,122.45,122.39,13.41901529]
[1769410771869,3.34366292,122.45,122.39,10.85569124]
[1769410773169,5.90698697,122.45,122.39,10.85569124]
[1769410776968,2.56332405,122.44,122.39,10.85569124]
[1769410777670,3.34366292,122.45,122.4,3.43512801]
[1769410777861,5.90698697,122.45,122.4,3.43512801]
[1769410778470,3.34366292,122.45,122.4,3.43512801]
[1769410781570,3.34366292,122.45,122.38,310.46766574]
[1769410781571,3.36071535,122.48,122.42,3.43512801]
[1769410781768,5.9240394,122.48,122.42,3.43512801]
[1769410782874,13.2819394,122.48,122.42,3.43512801]
[1769410783274,2.56332405,122.47,122.42,3.43512801]
[1769410785073,5.9240394,122.48,122.43,3.43512801]
[1769410787581,5.9240394,122.47,122.43,3.43512801]
[1769410789483,3.36071535,122.47,122.43,3.43512801]
[1769410790681,3.36071535,122.47,122.41,13.36015206]
[1769410790874,3.36071535,122.46,122.41,3.43512801]
[1769410795587,5.9240394,122.46,122.41,3.43512801]
[1769410801697,3.36071535,122.46,122.41,3.43512801]
[1769410801896,3.36071535,122.45,122.41,3.43512801]
[1769410802192,3.36071535,122.44,122.39,3.43512801]
[1769410802592,5.9240394,122.44,122.39,3.43512801]
[1769410802793,3.36071535,122.44,122.39,3.43512801]
[1769410803196,13.2829394,122.46,122.4,3.43512801]
[1769410804496,3.36071535,122.45,122.4,3.43512801]
[1769410806697,5.9240394,122.45,122.4,3.43512801]
[1769410806894,3.36071535,122.45,122.4,3.43512801]
[1769410808400,5.9240394,122.45,122.4,3.43512801]
[1769410809499,3.47407452,122.44,122.38,3.49099664]
[1769410809802,3.47407452,122.43,122.38,3.49099664]
[1769410811797,6.03739857,122.43,122.38,3.49099664]
[1769410811997,3.47407452,122.42,122.38,3.49099664]
[1769410812199,3.47407452,122.42,122.35,141.68993622]
[1769410812200,6.03739857,122.42,122.36,3.49099664]
[1769410812501,3.47407452,122.41,122.36,3.49099664]
[1769410812910,6.03739857,122.41,122.36,3.49099664]
[1769410814504,114.4747,122.46,122.34,3.49099664]
[1769410814505,3.47407452,122.39,122.34,3.49099664]
[1769410815110,3.47407452,122.39,122.35,2.56332405]
[1769410815310,3.47407452,122.42,122.35,6.05432069]
[1769410815810,3.47407452,122.42,122.36,2.56332405]
[1769410816010,3.47407452,122.41,122.36,2.56332405]
[1769410817116,3.47407452,122.41,122.35,6.05432069]
[1769410818810,3.51788232,122.4,122.35,2.56332405]
[1769410819010,3.51788232,122.4,122.33,5.81663742]
[1769410819917,3.51788232,122.39,122.35,2.56332405]
[1769410821718,3.51788232,122.39,122.34,5.81663742]
[1769410822521,3.51788232,122.39,122.35,2.56332405]
[1769410822909,3.51788232,122.39,122.34,5.81663742]
[1769410825517,3.51788232,122.39,122.34,3.25331337]
[1769410825914,3.51788232,122.39,122.34,5.82044455]
[1769410826522,3.51788232,122.41,122.36,2.56713118]
[1769410827420,3.51788232,122.41,122.37,2.56713118]
[1769410827616,3.51788232,122.41,122.36,5.82044455]
[1769410829126,3.51788232,122.43,122.38,2.56713118]
[1769410829625,3.51788232,122.42,122.38,2.56713118]
[1769410829822,3.51788232,122.42,122.37,5.82044455]
[1769410830321,3.51788232,122.42,122.35,3.25331337]
[1769410830521,3.51788232,122.41,122.34,2.56713118]
[1769410830721,3.51788232,122.4,122.33,3.25331337]
[1769410831026,3.51788232,122.4,122.34,2.56713118]
[1769410831419,3.51788232,122.4,122.34,5.82044455]
[1769410833528,6.0850135,122.4,122.34,3.25331337]
[1769410833728,3.51788232,122.39,122.33,9.93333118]
[1769410833929,3.51788232,122.39,122.33,2.56713118]
[1769410834229,3.51788232,122.39,122.32,5.82044455]
[1769410834425,3.51788232,122.38,122.32,3.25331337]
[1769410834622,3.51788232,122.37,122.32,3.25331337]
[1769410834823,3.51788232,122.37,122.32,5.82044455]
[1769410837137,7.3638,122.38,122.33,3.41456485]
[1769410837430,10.71666983,122.38,122.33,3.41456485]
[1769410837930,10.71666983,122.38,122.32,2.56713118]
[1769410838327,3.35286983,122.38,122.32,3.41456485]
[1769410838520,10.71566983,122.4,122.34,3.41456485]
[1769410838718,3.35286983,122.39,122.34,3.41456485]
[1769410840726,3.35286983,122.39,122.33,2.56713118]
[1769410840727,3.35286983,122.39,122.32,5.98169603]
[1769410841833,3.35286983,122.39,122.33,3.41456485]
[1769410842034,3.35286983,122.39,122.34,3.41456485]
[1769410842734,3.35286983,122.39,122.34,5.98169603]
[1769410843033,7.3628,122.4,122.34,5.98169603]
[1769410843234,3.35286983,122.41,122.35,2.56713118]
[1769410843422,3.35286983,122.41,122.35,5.98169603]
[1769410844328,3.35286983,122.41,122.36,5.98169603]
[1769410844528,3.35286983,122.41,122.36,3.41456485]
[1769410844726,3.35286983,122.41,122.36,5.98169603]
[1769410847137,3.35286983,122.41,122.35,9.93253118]
[1769410849028,3.35286983,122.39,122.33,7.3662]
[1769410849530,3.35286983,122.39,122.33,10.78076485]
[1769410849725,5.92000101,122.39,122.33,10.78076485]
[1769410852340,3.35286983,122.39,122.33,10.78076485]
[1769410852942,3.35286983,122.39,122.33,13.34789603]
[1769410855637,3.35286983,122.39,122.34,5.98169603]
[1769410856240,3.35286983,122.41,122.35,3.41456485]
[1769410856945,10.71476983,122.41,122.35,3.41456485]
[1769410858150,10.71476983,122.41,122.35,5.98169603]
[1769410858744,3.35286983,122.4,122.35,5.98169603]
[1769410859145,3.35286983,122.4,122.35,3.41456485]
[1769410859457,3.35286983,122.39,122.34,2.56713118]
[1769410860541,10.71596983,122.39,122.33,3.41456485]
[1769410860736,3.35286983,122.38,122.33,3.41456485]
[1769410861354,3.35286983,122.37,122.31,5.98169603]
[1769410861745,3.35286983,122.37,122.31,3.41456485]
[1769410862449,3.35286983,122.36,122.31,3.41456485]
[1769410862646,3.35286983,122.34,122.29,3.41456485]
[1769410864444,3.35286983,122.33,122.26,3.41456485]
[1769410864658,5.92000101,122.33,122.26,5.98169603]
[1769410865048,5.92000101,122.33,122.27,3.49449686]
[1769410865756,3.35286983,122.33,122.27,6.06162804]
[1769410866049,3.35286983,122.33,122.28,3.49449686]
[1769410866256,7.3662,122.34,122.29,6.06162804]
[1769410866755,10.7142302,122.34,122.28,2.56713118]
[1769410866949,13.28136138,122.34,122.28,3.49449686]
[1769410868150,3.3480302,122.34,122.29,6.06162804]
[1769410868560,3.3480302,122.34,122.29,3.49449686]
[1769410868855,3.3480302,122.34,122.3,0.05669219]
[1769410869752,0.0530263,122.33,122.3,3.55118905]
[1769410870356,0.0530263,122.33,122.3,3.49449686]
[1769410870753,0.0530263,122.33,122.3,3.54760426]
[1769410872060,0.0530263,122.33,122.3,0.0531074]
[1769410872657,3.4010565,122.33,122.28,3.49449686]
[1769410872956,5.96818768,122.33,122.26,6.06162804]
[1769410873450,3.3480302,122.32,122.26,6.06162804]
[1769410873657,5.91516138,122.31,122.26,3.49449686]
[1769410873855,10.7146302,122.33,122.27,3.49449686]
[1769410874156,0.05200769,122.3,122.27,3.49449686]
[1769410875257,0.05200769,122.3,122.25,3.49449686]
[1769410877158,0.05200769,122.3,122.25,6.06162804]
[1769410877467,3.54266676,122.34,122.28,6.0303902]
[1769410877663,3.54266676,122.34,122.29,3.46325902]
[1769410877960,13.47469794,122.36,122.29,6.0303902]
[1769410880064,13.47469794,122.36,122.29,3.46325902]
[1769410880365,13.47469794,122.36,122.29,6.0303902]
[1769410880965,165.28,122.37,122.31,6.0303902]
[1769410881167,10.90636676,122.38,122.32,3.46325902]
[1769410881366,10.90636676,122.38,122.32,6.0303902]
[1769410882667,3.54266676,122.38,122.33,2.56713118]
[1769410882961,7.3626,122.4,122.34,6.0303902]
[1769410883156,3.54266676,122.41,122.36,2.56713118]
[1769410883351,172.88979794,122.43,122.37,2.56713118]
[1769410883562,6.10979794,122.47,122.4,6.0303902]
[1769410883865,3.54266676,122.46,122.4,6.0303902]
[1769410884058,6.10979794,122.46,122.4,3.46325902]
[1769410884259,2.56713118,122.42,122.36,3.46325902]
[1769410885363,6.10979794,122.43,122.36,6.0303902]
[1769410885567,6.10855811,122.43,122.36,6.02915037]
[1769410886965,2.56589135,122.42,122.36,3.46325902]
[1769410887171,6.10855811,122.42,122.36,3.46325902]
[1769410887465,2.56589135,122.41,122.36,3.46325902]
[1769410889867,2.56589135,122.4,122.34,3.46325902]
[1769410890762,2.56589135,122.39,122.34,3.46325902]
[1769410891357,2.56589135,122.38,122.31,6.02915037]
[1769410891557,2.56589135,122.38,122.32,3.46325902]
[1769410892165,2.56589135,122.37,122.32,3.46325902]
[1769410893166,2.56589135,122.36,122.32,3.46325902]
[1769410898175,2.56589135,122.35,122.3,10.7154552]
[1769410901575,2.56589135,122.34,122.3,10.7154552]
[1769410902375,2.56589135,122.34,122.3,3.3477552]
[1769410902874,2.56589135,122.33,122.28,10.7166552]
[1769410903171,2.56589135,122.33,122.28,3.3477552]
[1769410903377,2.56589135,122.32,122.28,3.3477552]
[1769410904577,114.5619,122.36,122.25,3.3477552]
[1769410904578,2.56589135,122.31,122.25,3.3477552]
[1769410905372,2.56589135,122.31,122.26,3.3477552]
[1769410905671,2.56589135,122.3,122.24,3.3477552]
[1769410906178,2.56589135,122.29,122.24,3.3477552]
[1769410906881,2.56589135,122.3,122.24,3.3477552]
[1769410909081,2.56589135,122.32,122.25,3.3477552]
[1769410909972,2.56589135,122.32,122.26,3.3477552]
[1769410910576,2.56589135,122.34,122.27,5.91364655]
[1769410910776,2.56589135,122.34,122.28,3.3477552]
[1769410913883,6.09550237,122.34,122.28,3.3477552]
[1769410914681,3.52961102,122.33,122.28,3.3477552]
[1769410914874,6.09550237,122.33,122.26,5.91364655]
[1769410915384,3.52961102,122.31,122.26,3.3477552]
[1769410915782,6.09550237,122.31,122.26,3.3477552]
[1769410917276,6.09550237,122.31,122.24,3.3477552]
[1769410917886,2.56589135,122.3,122.24,10.7193552]
[1769410919786,6.09550237,122.3,122.24,3.3477552]
[1769410920393,2.56589135,122.29,122.24,3.3477552]
[1769410921879,114.5912,122.33,122.24,3.3477552]
[1769410921880,2.56589135,122.33,122.26,3.3477552]
[1769410922080,2.56589135,122.33,122.27,3.3477552]
[1769410923683,3.52961102,122.34,122.27,3.3477552]
[1769410923883,6.09550237,122.34,122.28,3.3477552]
[1769410924188,3.52961102,122.34,122.28,5.91364655]
[1769410924782,3.52961102,122.34,122.28,3.3477552]
[1769410924983,13.46130237,122.34,122.28,3.3477552]
[1769410925385,3.52961102,122.34,122.28,3.3477552]
[1769410925689,6.09550237,122.34,122.28,3.3477552]
[1769410927183,3.52961102,122.34,122.29,3.4329717]
[1769410927383,2.56589135,122.36,122.3,3.4329717]
[1769410927579,10.81547699,122.37,122.31,3.4329717]
[1769410927580,13.38136834,122.37,122.31,3.4329717]
[1769410927780,2.56589135,122.38,122.32,3.4329717]
[1769410928394,6.01706834,122.39,122.32,5.99886305]
[1769410928591,13.38026834,122.39,122.33,3.4329717]
[1769410928992,13.38026834,122.39,122.33,5.99886305]
[1769410929295,10.81437699,122.39,122.33,5.99886305]
[1769410929495,10.81437699,122.39,122.33,3.4329717]
[1769410929994,13.38026834,122.39,122.33,3.4329717]
[1769410931091,6.01706834,122.38,122.31,13.36616305]
[1769410932200,3.45117699,122.38,122.32,5.99886305]
[1769410933002,3.45117699,122.37,122.31,2.56589135]
[1769410933204,6.01706834,122.37,122.3,2.56589135]
[1769410933600,6.01706834,122.37,122.3,5.99886305]
[1769410935306,10.81457699,122.38,122.32,5.99886305]
[1769410935605,3.45117699,122.38,122.33,2.56589135]
[1769410935806,3.45117699,122.38,122.33,5.99886305]
[1769410936210,3.45117699,122.38,122.33,3.4329717]
[1769410937803,13.38046834,122.38,122.31,13.3897692]
[1769410938009,13.38046834,122.38,122.31,3.45647785]
[1769410939107,13.38046834,122.38,122.32,3.45647785]
[1769410940108,2.56589135,122.37,122.32,3.45647785]
[1769410941208,5.99786119,122.37,122.3,2.56589135]
[1769410941408,5.99786119,122.37,122.3,6.0223692]
[1769410941604,5.99786119,122.37,122.31,3.45647785]
[1769410941810,3.43196984,122.37,122.31,3.45647785]
[1769410942311,9.92929135,122.38,122.32,3.45647785]
[1769410942512,3.43196984,122.39,122.33,3.45647785]
[1769410942907,5.99786119,122.39,122.33,3.45647785]
[1769410943309,13.36056119,122.39,122.33,3.45647785]
[1769410943609,2.56589135,122.38,122.33,3.45647785]
[1769410943809,13.36056119,122.39,122.33,3.45647785]
[1769410945610,13.3622211,122.39,122.33,3.45647785]
[1769410950216,3.43196984,122.38,122.33,3.45647785]
[1769410953025,10.79536984,122.38,122.33,3.45647785]
[1769410953225,13.3629211,122.38,122.31,6.02402911]
[1769410956722,13.3629211,122.38,122.31,2.56755126]
[1769410956928,10.79536984,122.38,122.32,3.56144425]
[1769410957129,3.43196984,122.38,122.33,3.56144425]
[1769410957622,5.9995211,122.38,122.33,3.56144425]
[1769410958022,3.54659012,122.36,122.31,3.56144425]
[1769410958923,2.56755126,122.37,122.31,3.56144425]
[1769410959528,10.90999012,122.38,122.32,3.56144425]
[1769410959727,13.47754138,122.38,122.32,3.56144425]
[1769410960630,10.90999012,122.38,122.32,3.56144425]
[1769410960830,13.47754138,122.38,122.32,3.56144425]
[1769410962126,6.11414138,122.38,122.32,3.56144425]
[1769410962332,6.11414138,122.38,122.33,3.56144425]
[1769410962625,7.3625,122.4,122.31,7.3674]
[1769410962626,3.54659012,122.4,122.34,6.12899551]
[1769410963233,6.11414138,122.4,122.34,3.56144425]
[1769410963925,3.54659012,122.39,122.34,3.56144425]
[1769410964425,6.11414138,122.39,122.34,3.56144425]
[1769410964629,2.56755126,122.38,122.34,3.56144425]
[1769410965132,13.47694138,122.39,122.34,3.56144425]
[1769410965634,10.90999012,122.38,122.32,3.56144425]
[1769410965938,2.56755126,122.37,122.32,3.56144425]
[1769410966226,2.56755126,122.36,122.29,9.93615126]
[1769410966433,6.11414138,122.36,122.3,3.56144425]
[1769410967033,3.54659012,122.36,122.31,3.56144425]
[1769410967621,3.54659012,122.38,122.31,10.92884425]
[1769410967830,13.47734138,122.39,122.32,3.56144425]
[1769410968928,13.47734138,122.39,122.32,10.92814425]
[1769410969129,13.47734138,122.39,122.33,3.56144425]
[1769410972730,2.56755126,122.38,122.33,3.56144425]
[1769410974234,174.96849012,122.41,122.34,3.56144425]
[1769410974439,2.56755126,122.4,122.35,3.56144425]
[1769410975337,2.56755126,122.39,122.35,3.56144425]
[1769410975734,2.56755126,122.4,122.35,3.56144425]
[1769410976135,2.56755126,122.39,122.35,3.56144425]
[1769410979739,6.11414138,122.38,122.31,10.92854425]
[1769410980033,3.54659012,122.37,122.32,3.56144425]
[1769410982132,6.11414138,122.36,122.3,3.56144425]
[1769410984036,6.11414138,122.36,122.3,10.92944425]
[1769410984537,13.47804138,122.37,122.31,3.56144425]
[1769410986644,6.11414138,122.37,122.31,10.92884425]
[1769410990949,6.11414138,122.37,122.31,7.3674]
[1769410991254,6.11414138,122.37,122.32,3.56565527]
[1769410991452,3.24355599,122.41,122.34,3.56565527]
[1769410991753,5.81110725,122.4,122.34,3.56565527]
[1769410993053,3.24355599,122.4,122.34,3.56565527]
[1769410994052,3.24355599,122.4,122.35,3.56565527]
[1769410995154,5.81110725,122.4,122.35,3.56565527]
[1769410997858,2.56755126,122.4,122.35,10.93045527]
[1769410998053,2.56755126,122.41,122.35,10.93045527]
[1769410998658,6.08237284,122.4,122.35,7.3648]
[1769411000963,6.08237284,122.4,122.35,10.77742966]
[1769411001667,6.08237284,122.4,122.35,3.41262966]
[1769411004471,2.56755126,122.39,122.35,3.41262966]
[1769411005465,3.51482158,122.42,122.35,3.41262966]
[1769411005658,3.51482158,122.42,122.35,10.77752966]
[1769411005659,6.08237284,122.42,122.35,10.77752966]
[1769411005862,6.08237284,122.41,122.35,10.77752966]
[1769411007569,6.08130372,122.41,122.35,10.77752966]
[1769411008270,6.08130372,122.4,122.35,3.41262966]
[1769411008470,2.56648214,122.39,122.35,3.41262966]
[1769411008966,3.51482158,122.42,122.35,3.41262966]
[1769411009173,6.45915163,122.44,122.37,3.41262966]
[1769411009476,6.08130372,122.44,122.38,3.41262966]
[1769411009772,6.08130372,122.43,122.38,3.41262966]
[1769411010071,3.51482158,122.43,122.38,3.41262966]
[1769411013371,6.08130372,122.43,122.38,3.41262966]
[1769411015579,3.51482158,122.43,122.38,3.41262966]
[1769411016378,2.56648214,122.44,122.38,3.41262966]
[1769411016579,180.67377191,122.45,122.39,3.53984751]
[1769411016780,13.19377191,122.45,122.39,3.53984751]
[1769411017779,5.83427191,122.45,122.39,3.53984751]
[1769411020178,3.26778977,122.44,122.39,3.53984751]
[1769411025184,3.26778977,122.43,122.37,6.10632965]
[1769411025385,5.83427191,122.43,122.37,3.53984751]
[1769411026286,3.26778977,122.42,122.37,3.53984751]
[1769411026685,3.26778977,122.42,122.37,10.90364751]
[1769411030084,5.83427191,122.42,122.37,3.53984751]
[1769411030787,2.56648214,122.41,122.37,3.53984751]
[1769411031089,5.83427191,122.42,122.37,3.53984751]
[1769411035785,3.26778977,122.42,122.37,3.53984751]
[1769411037294,5.83427191,122.44,122.38,3.53984751]
[1769411038987,5.83427191,122.44,122.38,10.90294751]
[1769411041692,2.56648214,122.43,122.38,10.90294751]
[1769411041993,3.26778977,122.44,122.39,3.53984751]
[1769411041994,5.83427191,122.44,122.39,3.53984751]
[1769411042787,5.83427191,122.44,122.39,10.90244751]
[1769411043591,3.26778977,122.44,122.39,10.90244751]
[1769411043791,5.83427191,122.44,122.39,10.90244751]
[1769411044182,5.83427191,122.44,122.39,3.53984751]
[1769411044389,2.56648214,122.4,122.35,3.53984751]
[1769411047591,5.9719866,122.4,122.35,3.53984751]
[1769411048495,2.56648214,122.39,122.35,3.53984751]
[1769411049300,5.9719866,122.4,122.35,3.53984751]
[1769411049695,5.9719866,122.4,122.34,7.3653]
[1769411049901,5.9719866,122.38,122.33,3.33537959]
[1769411050698,5.9719866,122.37,122.31,3.33537959]
[1769411050894,5.9719866,122.36,122.31,3.33537959]
[1769411051394,0.05597252,122.35,122.31,3.33537959]
[1769411051593,0.05597252,122.35,122.32,0.05479185]
[1769411051995,2.62245466,122.35,122.32,0.05479185]
[1769411052495,2.62245466,122.35,122.29,3.33537959]
[1769411055808,2.62245466,122.35,122.29,10.70377959]
[1769411056310,0.05597252,122.35,122.29,13.27026173]
[1769411056614,0.05597252,122.35,122.3,3.33537959]
[1769411056815,0.05597252,122.35,122.3,13.26986173]
[1769411057009,0.05597252,122.35,122.31,5.90186173]
[1769411060017,13.51637443,122.41,122.34,5.85629279]
[1769411060315,3.58779229,122.4,122.34,5.85629279]
[1769411061112,3.58779229,122.4,122.34,3.28981065]
[1769411061417,3.58779229,122.4,122.36,0.05309365]
[1769411064312,3.58779229,122.4,122.36,2.61957579]
[1769411064614,3.58779229,122.43,122.37,5.85629279]
[1769411065416,3.58779229,122.42,122.36,2.56648214]
[1769411066018,0.06165527,122.41,122.36,2.56648214]
[1769411066414,3.58779229,122.4,122.34,2.56648214]
[1769411067420,0.05148257,122.38,122.34,2.56648214]
[1769411067618,0.05148257,122.38,122.34,2.56692415]
[1769411068017,0.05148257,122.38,122.33,5.8567348]
[1769411068721,3.63927486,122.38,122.33,3.28981065]
[1769411070724,3.63927486,122.38,122.33,5.8567348]
[1769411071221,3.63927486,122.38,122.33,2.56692415]
[1769411071426,3.58779229,122.37,122.31,5.8567348]
[1769411071730,3.58779229,122.35,122.29,5.8567348]
[1769411072416,0.0585446,122.33,122.29,5.8567348]
[1769411072621,0.0585446,122.33,122.29,3.28981065]
[1769411073428,3.64633689,122.33,122.27,5.8567348]
[1769411073625,3.64633689,122.33,122.27,3.28981065]
[1769411074220,6.21326104,122.33,122.27,3.28981065]
[1769411074416,13.57996104,122.33,122.27,3.28981065]
[1769411075121,2.56692415,122.32,122.25,322.64514557]
[1769411075315,11.01303689,122.33,122.25,322.64514557]
[1769411075316,3.35411996,122.3,122.25,3.25194129]
[1769411075516,3.35411996,122.3,122.24,2.56692415]
[1769411075722,3.35411996,122.3,122.23,5.81886544]
[1769411075923,3.35411996,122.29,122.23,5.81886544]
[1769411076123,0.06202739,122.28,122.23,5.81886544]
[1769411078328,0.06202739,122.28,122.24,2.56692415]
[1769411078723,0.06202739,122.28,122.23,3.25194129]
[1769411079724,0.06202739,122.28,122.23,5.81886544]
[1769411082028,0.06202739,122.28,122.23,3.25194129]
[1769411082530,2.62895154,122.28,122.23,3.25194129]
[1769411082730,3.35411996,122.27,122.21,5.81886544]
[1769411082930,5.92104411,122.27,122.21,3.25194129]
[1769411083436,3.35411996,122.27,122.21,5.81886544]
[1769411083736,0.05638103,122.25,122.21,5.81886544]
[1769411084838,3.35411996,122.27,122.22,3.25194129]
[1769411085138,3.35411996,122.27,122.22,5.87559073]
[1769411085838,3.35411996,122.27,122.22,3.30866658]
[1769411086838,5.92104411,122.27,122.22,3.30866658]
[1769411087930,5.92104411,122.27,122.22,0.05672529]
[1769411088744,5.92104411,122.26,122.22,0.05672529]
[1769411089046,5.92104411,122.25,122.18,318.37190069]
[1769411089341,2.56692415,122.24,122.18,318.37190069]
[1769411089643,5.98253965,122.25,122.18,318.37190069]
[1769411089844,2.56692415,122.24,122.18,318.37190069]
[1769411090441,0.05660097,122.22,122.18,318.37190069]
[1769411091246,0.05660097,122.22,122.18,320.93882484]
[1769411092540,3.35411996,122.25,122.19,5.81886544]
[1769411092734,3.35411996,122.25,122.19,5.87663451]
[1769411092938,3.35411996,122.25,122.2,3.25194129]
[1769411095040,3.35411996,122.25,122.2,5.81886544]
[1769411095451,7.3706,122.26,122.21,3.25194129]
[1769411096249,10.72471996,122.26,122.21,3.25194129]
[1769411096450,10.72471996,122.26,122.22,0.05180981]
[1769411100249,10.72371996,122.28,122.22,5.87067525]
[1769411100652,5.92104411,122.27,122.22,0.05180981]
[1769411101246,3.35411996,122.25,122.18,3.25194129]
[1769411101452,3.35411996,122.25,122.19,5.81886544]
[1769411101652,3.35411996,122.25,122.2,2.56692415]
[1769411101953,3.35411996,122.25,122.19,5.81886544]
[1769411102656,0.0611347,122.23,122.19,5.81886544]
[1769411103059,0.0611347,122.23,122.19,3.25194129]
[1769411103656,3.41525466,122.23,122.16,5.81886544]
[1769411103857,3.41525466,122.23,122.16,3.25194129]
[1769411103858,3.35411996,122.22,122.16,3.25194129]
[1769411104058,3.35411996,122.22,122.16,5.81886544]
[1769411104748,0.05551749,122.2,122.16,5.81886544]